bitfinex-derivatives/quotes_BTCF0:USTF0_20260214
["timestamp","ask_amount","ask_price","bid_price","bid_amount"]
[1771030775859,0.01456,69100.0,69095.0,0.01448]
[1771030776055,0.01456,69101.0,69097.0,0.01448]
[1771030776259,3.3e-07,69094.0,69093.0,0.029041]
[1771030779966,6.9e-07,69102.0,69101.0,0.014479]
[1771030780159,6.9e-07,69102.0,69100.0,0.014479]
[1771030780758,6.9e-07,69102.0,69097.0,0.01448]
[1771030780965,6.9e-07,69102.0,69099.0,0.014479]
[1771030782257,0.1448,69110.0,69103.0,0.014479]
[1771030782463,6e-07,69102.0,69100.0,0.014479]
[1771030782764,6e-07,69102.0,69101.0,0.014479]
[1771030795261,6e-07,69102.0,69099.0,8.1e-05]
[1771030795767,6e-07,69102.0,69100.0,0.014479]
[1771030796473,6e-07,69102.0,69099.0,0.01456]
[1771030797878,6e-07,69102.0,69099.0,0.029039]
[1771030798376,0.36445454,69101.0,69060.0,0.00011553]
[1771030798572,0.36445454,69101.0,69046.0,0.3393364]
[1771030798573,6e-07,69055.0,69046.0,0.3393364]
[1771030798874,6e-07,69044.0,69041.0,0.0146]
[1771030799073,6e-07,69044.0,69034.0,0.3393364]
[1771030799272,0.014485,69074.0,69052.0,0.3393364]
[1771030799469,0.005,69104.0,69086.0,0.26694017]
[1771030799669,0.34425454,69136.0,69115.0,0.3393364]
[1771030799870,0.34436726,69135.0,69116.0,0.0146]
[1771030800066,0.34425454,69126.0,69107.0,0.3393364]
[1771030800273,0.34425454,69126.0,69100.0,0.00016889]
[1771030800274,0.50369454,69125.0,69104.0,0.3393364]
[1771030800477,0.57928,69142.0,69100.0,8.9e-07]
[1771030800478,0.014479,69101.0,69100.0,8.9e-07]
[1771030800671,0.01448,69097.0,69094.0,0.01464]
[1771030800871,0.01448,69097.0,69093.0,0.1448]
[1771030800872,0.014479,69101.0,69093.0,0.10171586]
[1771030801077,0.014479,69101.0,69093.0,0.02934984]
[1771030801378,0.07236345,69094.0,69093.0,0.02934984]
[1771030801573,0.07255,69094.0,69083.0,0.33943072]
[1771030801774,0.07255,69094.0,69076.0,0.01464]
[1771030801775,0.014481,69091.0,69076.0,0.01464]
[1771030802077,0.07236345,69082.0,69077.0,0.01464]
[1771030803483,0.04338897,69082.0,69077.0,0.01464]
[1771030803783,0.014483,69081.0,69077.0,0.01464]
[1771030804281,0.04338897,69073.0,69058.0,0.33943072]
[1771030804483,0.04338897,69073.0,69064.0,0.014487]
[1771030804673,0.04338897,69073.0,69065.0,0.01464]
[1771030804873,0.04338897,69073.0,69066.0,0.014486]
[1771030805079,0.04338897,69073.0,69065.0,0.35407072]
[1771030805282,0.04338897,69073.0,69065.0,0.01464]
[1771030805876,0.04338897,69073.0,69065.0,0.029126]
[1771030807377,0.05787397,69073.0,69065.0,0.01464]
[1771030807582,0.05787397,69073.0,69065.0,0.029127]
[1771030807988,0.014485,69071.0,69065.0,0.01464]
[1771030808286,0.01459295,69070.0,69065.0,0.01464]
[1771030808593,0.014487,69064.0,69058.0,0.14484]
[1771030808790,0.014486,69066.0,69059.0,0.01464]
[1771030809094,9.7e-07,69073.0,69072.0,0.35391572]
[1771030809286,0.01448,69098.0,69072.0,0.01464]
[1771030809287,0.01464,69086.0,69072.0,0.01464]
[1771030809484,0.014485,69072.0,69065.0,0.01464]
[1771030809788,0.014485,69071.0,69065.0,0.01464]
[1771030810188,0.00012706,69070.0,69065.0,0.01464]
[1771030810388,0.01461306,69070.0,69065.0,0.01464]
[1771030811491,0.014486,69069.0,69065.0,0.01464]
[1771030811789,0.01461306,69070.0,69065.0,0.01464]
[1771030811998,0.00012706,69070.0,69065.0,0.01464]
[1771030812289,0.014486,69069.0,69064.0,0.01464]
[1771030812490,0.014488,69061.0,69057.0,0.01464]
[1771030812692,0.014488,69058.0,69054.0,0.01464]
[1771030812893,0.014488,69060.0,69054.0,0.01464]
[1771030814992,0.014484,69076.0,69065.0,0.33943072]
[1771030815192,0.014484,69076.0,69066.0,0.014486]
[1771030815385,0.01464,69075.0,69066.0,0.014486]
[1771030815790,0.01464,69075.0,69068.0,0.014486]
[1771030816095,0.01464,69084.0,69069.0,0.01464]
[1771030816400,0.07237909,69071.0,69069.0,0.01464]
[1771030816596,0.014484,69076.0,69069.0,0.01464]
[1771030816891,0.014484,69077.0,69069.0,0.01464]
[1771030817096,0.07238928,69071.0,69069.0,0.01464]
[1771030817599,0.02417342,69071.0,69069.0,0.01464]
[1771030817895,0.02417342,69071.0,69070.0,0.014486]
[1771030818595,0.02417342,69071.0,69066.0,0.01464]
[1771030818795,0.02417342,69071.0,69066.0,0.029126]
[1771030819589,0.02417342,69071.0,69066.0,0.01464]
[1771030820899,0.014483,69080.0,69066.0,0.01464]
[1771030820900,0.014478,69105.0,69088.0,0.33943072]
[1771030821191,0.014483,69084.0,69077.0,0.01464]
[1771030821398,0.014483,69084.0,69078.0,0.01464]
[1771030821692,0.014484,69079.0,69068.0,0.014486]
[1771030821897,0.014484,69079.0,69070.0,0.014485]
[1771030822090,0.08685013,69073.0,69064.0,0.014487]
[1771030822392,0.07236513,69073.0,69065.0,0.029126]
[1771030823194,0.08685013,69073.0,69065.0,0.029126]
[1771030823891,0.014482,69089.0,69079.0,0.014484]
[1771030824100,0.014483,69084.0,69080.0,0.00494761]
[1771030824300,0.014484,69078.0,69073.0,0.01464]
[1771030824592,0.014484,69078.0,69070.0,0.01464]
[1771030824794,0.014484,69076.0,69070.0,0.01464]
[1771030825098,0.014484,69077.0,69069.0,0.014486]
[1771030825298,0.014484,69077.0,69069.0,0.029126]
[1771030825798,0.029124,69078.0,69070.0,0.014485]
[1771030826001,0.01464,69078.0,69073.0,0.014485]
[1771030826194,0.01464,69078.0,69070.0,0.014485]
[1771030826394,0.029124,69078.0,69070.0,0.014485]
[1771030827501,0.029124,69078.0,69071.0,0.014485]
[1771030828291,0.029124,69078.0,69072.0,0.014485]
[1771030828292,0.01464,69078.0,69072.0,0.014485]
[1771030828492,0.01464,69078.0,69077.0,0.014484]
[1771030828698,0.07240014,69082.0,69077.0,0.014484]
[1771030829001,0.01464,69081.0,69076.0,0.014484]
[1771030829301,0.01464,69081.0,69075.0,0.014484]
[1771030830397,0.01464,69088.0,69081.0,0.014483]
[1771030830696,0.028966,69082.0,69074.0,0.014485]
[1771030830899,0.07238004,69080.0,69075.0,0.029124]
[1771030831100,0.029123,69083.0,69075.0,0.029124]
[1771030831400,0.07237985,69080.0,69075.0,0.029124]
[1771030831596,0.34804573,69091.0,69075.0,0.028972]
[1771030831801,0.01464,69090.0,69079.0,0.22453483]
[1771030832100,0.07237046,69089.0,69086.0,0.014482]
[1771030832295,0.07237046,69089.0,69082.0,0.014483]
[1771030832500,0.07237046,69089.0,69079.0,0.35910287]
[1771030832701,0.07237046,69089.0,69077.0,0.01464]
[1771030832702,0.08685246,69089.0,69080.0,0.014483]
[1771030832895,0.08685246,69089.0,69081.0,0.029123]
[1771030833713,0.014482,69088.0,69081.0,0.01464]
[1771030834001,0.07237046,69082.0,69081.0,0.01464]
[1771030834210,0.029122,69088.0,69081.0,0.01464]
[1771030834395,0.07238462,69082.0,69079.0,0.029123]
[1771030834593,0.07238462,69082.0,69079.0,0.058095]
[1771030834796,0.05774458,69082.0,69079.0,0.029123]
[1771030835098,0.029122,69088.0,69081.0,0.028972]
[1771030835301,0.07237775,69082.0,69080.0,0.014483]
[1771030836010,0.029122,69088.0,69081.0,0.028972]
[1771030836203,0.029122,69088.0,69080.0,0.014483]
[1771030836508,0.07237775,69082.0,69079.0,0.01464]
[1771030836712,0.014482,69088.0,69079.0,0.043612]
[1771030836908,0.01464,69087.0,69079.0,0.01464]
[1771030837108,0.07237776,69082.0,69079.0,0.043612]
[1771030837408,0.07237776,69082.0,69079.0,0.01464]
[1771030837607,0.014482,69087.0,69081.0,0.028972]
[1771030837803,0.07237775,69082.0,69079.0,0.01464]
[1771030838113,0.07237775,69082.0,69080.0,0.028972]
[1771030838313,0.07237775,69082.0,69079.0,0.01464]
[1771030838612,0.06698605,69082.0,69081.0,0.028972]
[1771030840513,0.34804573,69091.0,69081.0,0.028972]
[1771030840710,0.014481,69093.0,69084.0,0.014482]
[1771030840911,0.01464,69092.0,69084.0,0.014482]
[1771030841218,0.07237194,69088.0,69084.0,0.014482]
[1771030841409,0.08701194,69088.0,69084.0,0.014482]
[1771030842016,0.01464,69088.0,69084.0,0.014482]
[1771030842216,0.029119,69103.0,69094.0,0.01448]
[1771030842412,0.01464,69103.0,69095.0,0.01448]
[1771030842611,0.07235746,69101.0,69095.0,0.01448]
[1771030844216,0.07235746,69101.0,69094.0,0.02912]
[1771030845013,0.07235746,69101.0,69094.0,0.058092]
[1771030845915,0.07235746,69101.0,69095.0,0.028972]
[1771030846312,0.01464,69100.0,69095.0,0.028972]
[1771030846515,0.01464,69100.0,69095.0,0.043452]
[1771030846719,0.01464,69100.0,69096.0,0.028972]
[1771030847111,0.01464,69100.0,69097.0,0.028972]
[1771030847311,0.01464,69100.0,69095.0,0.02896]
[1771030847517,0.01464,69100.0,69095.0,0.01448]
[1771030847718,0.01464,69100.0,69096.0,0.028972]
[1771030848321,0.01464,69100.0,69097.0,0.028972]
[1771030848518,0.08699746,69101.0,69097.0,0.028972]
[1771030849418,0.08699746,69101.0,69095.0,0.01448]
[1771030849825,0.08699746,69101.0,69097.0,0.028972]
[1771030850418,0.08699746,69101.0,69098.0,0.028972]
[1771030850620,0.08699746,69101.0,69094.0,0.01464]
[1771030850825,0.08699746,69101.0,69097.0,0.028972]
[1771030851524,0.08699746,69101.0,69094.0,0.02912]
[1771030851912,0.08699746,69101.0,69097.0,0.028972]
[1771030852314,0.10147646,69101.0,69093.0,0.014481]
[1771030852513,0.014479,69099.0,69092.0,0.01464]
[1771030852715,0.014482,69088.0,69083.0,0.01464]
[1771030853115,0.014482,69088.0,69076.0,0.014484]
[1771030853318,0.014483,69084.0,69077.0,0.01464]
[1771030853523,0.014482,69085.0,69077.0,0.029124]
[1771030853716,0.029122,69086.0,69077.0,0.029124]
[1771030854123,0.07235746,69084.0,69077.0,0.029124]
[1771030854523,0.07235746,69084.0,69077.0,0.01464]
[1771030854827,0.07235746,69084.0,69077.0,0.029124]
[1771030855024,0.07235746,69084.0,69078.0,0.014484]
[1771030855627,0.07235746,69084.0,69077.0,0.029124]
[1771030855827,0.07235746,69084.0,69080.0,0.014483]
[1771030856020,0.07235746,69084.0,69079.0,0.014484]
[1771030856719,0.07235746,69084.0,69080.0,0.01464]
[1771030857426,0.014483,69085.0,69080.0,0.01464]
[1771030857618,0.07239309,69084.0,69080.0,0.01464]
[1771030857819,0.08687609,69084.0,69080.0,0.01464]
[1771030858126,0.08687609,69084.0,69077.0,0.014484]
[1771030858127,0.08687609,69084.0,69079.0,0.01464]
[1771030859231,0.07239309,69084.0,69079.0,0.01464]
[1771030860531,0.014484,69076.0,69066.0,0.014486]
[1771030860725,0.014484,69077.0,69070.0,0.014486]
[1771030861027,0.014484,69077.0,69068.0,0.029126]
[1771030861028,0.37045276,69077.0,69068.0,0.00984589]
[1771030861231,0.07239309,69074.0,69068.0,0.00984589]
[1771030861431,0.07239309,69074.0,69058.0,0.36950911]
[1771030861732,0.014486,69067.0,69059.0,0.014488]
[1771030861927,0.07239309,69064.0,69060.0,0.01464]
[1771030862127,0.07239309,69064.0,69058.0,0.014488]
[1771030862329,0.014487,69063.0,69055.0,0.014489]
[1771030862527,0.014487,69063.0,69056.0,0.029128]
[1771030862920,0.08688009,69064.0,69056.0,0.029128]
[1771030863226,0.08688009,69064.0,69057.0,0.014488]
[1771030863624,0.08688009,69064.0,69056.0,0.029128]
[1771030864622,0.08688009,69064.0,69056.0,0.01464]
[1771030865130,0.08688009,69064.0,69056.0,0.029128]
[1771030865323,0.014487,69063.0,69056.0,0.01464]
[1771030865524,0.08688009,69064.0,69056.0,0.01464]
[1771030865525,0.07239309,69064.0,69056.0,0.01464]
[1771030865724,0.07239309,69064.0,69058.0,0.014488]
[1771030865927,0.014488,69059.0,69046.0,0.01449]
[1771030866235,0.07239309,69057.0,69050.0,0.01449]
[1771030866424,0.014488,69056.0,69050.0,0.01464]
[1771030866930,0.08688109,69057.0,69050.0,0.02913]
[1771030867133,0.00012326,69055.0,69050.0,0.02913]
[1771030867633,0.00012326,69055.0,69050.0,0.01464]
[1771030867822,0.01449,69049.0,69039.0,0.014492]
[1771030868026,0.01449,69049.0,69032.0,0.014493]
[1771030868226,0.01449,69048.0,69036.0,0.014493]
[1771030868526,0.014492,69041.0,69037.0,0.01464]
[1771030868731,0.014491,69042.0,69034.0,0.014493]
[1771030868933,0.014491,69042.0,69035.0,0.029133]
[1771030869325,0.014491,69042.0,69036.0,0.014493]
[1771030869527,0.37045276,69041.0,69022.0,0.36950911]
[1771030869828,0.01449,69049.0,69041.0,0.36950911]
[1771030870026,0.01449,69050.0,69042.0,0.01464]
[1771030870227,0.0724159,69046.0,69042.0,0.01464]
[1771030870426,0.0724159,69046.0,69043.0,0.014491]
[1771030870626,0.01464,69053.0,69042.0,0.01464]
[1771030870828,0.07241549,69046.0,69042.0,0.01464]
[1771030871334,0.014491,69045.0,69037.0,0.014492]
[1771030871544,7.411e-05,69044.0,69038.0,0.01464]
[1771030871736,7.411e-05,69044.0,69038.0,0.029132]
[1771030872126,7.411e-05,69044.0,69039.0,0.014492]
[1771030872321,7.411e-05,69044.0,69037.0,0.014492]
[1771030872526,0.014491,69043.0,69039.0,0.01464]
[1771030872835,0.02905611,69044.0,69039.0,0.01464]
[1771030873137,7.411e-05,69044.0,69039.0,0.01464]
[1771030873633,7.411e-05,69044.0,69039.0,0.029132]
[1771030874631,7.411e-05,69044.0,69042.0,0.014491]
[1771030875237,0.01449,69051.0,69042.0,0.014491]
[1771030875434,0.01464,69050.0,69042.0,0.014491]
[1771030875637,0.0724155,69046.0,69041.0,0.014492]
[1771030875831,0.0870555,69046.0,69041.0,0.014492]
[1771030878435,0.014487,69064.0,69052.0,0.014489]
[1771030878638,0.014488,69059.0,69049.0,0.01449]
[1771030878830,0.014488,69058.0,69049.0,0.01449]
[1771030879137,0.07240729,69054.0,69049.0,0.01449]
[1771030879439,0.014486,69066.0,69057.0,0.014488]
[1771030879735,0.029127,69065.0,69056.0,0.01464]
[1771030879940,0.07239953,69061.0,69056.0,0.01464]
[1771030880438,0.07239953,69061.0,69056.0,0.029128]
[1771030880640,0.07239953,69061.0,69056.0,0.01464]
[1771030881437,0.07239953,69061.0,69056.0,0.029128]
[1771030881936,0.35581276,69078.0,69058.0,0.36950911]
[1771030882142,0.014486,69069.0,69059.0,0.029128]
[1771030882440,0.07239976,69061.0,69059.0,0.029128]
[1771030882633,0.014486,69068.0,69059.0,0.029128]
[1771030883031,0.07239761,69063.0,69059.0,0.029128]
[1771030883240,0.014486,69068.0,69059.0,0.029128]
[1771030883633,0.07239472,69066.0,69059.0,0.029128]
[1771030884036,0.014487,69061.0,69053.0,0.014489]
[1771030884234,0.014487,69062.0,69054.0,0.0146]
[1771030884535,0.014489,69055.0,69043.0,0.014491]
[1771030884736,0.014488,69057.0,69048.0,0.01449]
[1771030884940,0.0146,69057.0,69049.0,0.02909]
[1771030885735,0.014488,69056.0,69049.0,0.0146]
[1771030885941,0.0146,69058.0,69052.0,0.014489]
[1771030886440,0.0146,69059.0,69052.0,0.014489]
[1771030887542,0.029088,69059.0,69052.0,0.014489]
[1771030888042,0.014488,69058.0,69050.0,0.02898]
[1771030888545,0.014489,69056.0,69049.0,0.0146]
[1771030888748,0.014489,69056.0,69049.0,0.02909]
[1771030888930,0.014488,69057.0,69050.0,0.01449]
[1771030889339,0.07239472,69058.0,69051.0,0.01449]
[1771030889539,0.07239472,69058.0,69052.0,0.014489]
[1771030889741,0.07239472,69058.0,69051.0,0.014489]
[1771030890642,0.08699472,69058.0,69052.0,0.014489]
[1771030890844,0.014488,69057.0,69050.0,0.01449]
[1771030891148,0.014489,69056.0,69050.0,0.01449]
[1771030891342,0.014488,69057.0,69050.0,0.01449]
[1771030891642,0.08699472,69058.0,69052.0,0.014489]
[1771030892037,0.10148272,69058.0,69052.0,0.014489]
[1771030894045,0.08699472,69058.0,69052.0,0.014489]
[1771030895145,0.08699472,69058.0,69052.0,0.028978]
[1771030895648,0.08699472,69058.0,69052.0,0.032978]
[1771030895947,0.08699472,69058.0,69054.0,0.014489]
[1771030897948,0.08699472,69058.0,69054.0,0.018489]
[1771030898754,0.08699472,69058.0,69054.0,0.004]
[1771030900450,0.014488,69057.0,69054.0,0.004]
[1771030900640,0.014489,69055.0,69047.0,0.01449]
[1771030900946,0.014489,69056.0,69049.0,0.01449]
[1771030902043,0.014489,69056.0,69049.0,0.01849]
[1771030902241,0.014488,69057.0,69049.0,0.01849]
[1771030902242,0.014489,69055.0,69049.0,0.01849]
[1771030902743,0.014488,69057.0,69051.0,0.01449]
[1771030902944,0.029088,69057.0,69050.0,0.02898]
[1771030903147,0.043576,69057.0,69050.0,0.01449]
[1771030903351,0.029088,69057.0,69050.0,0.01449]
[1771030903650,0.029088,69057.0,69050.0,0.02898]
[1771030904055,0.002,69055.0,69050.0,0.02898]
[1771030904352,0.08688272,69058.0,69051.0,0.01449]
[1771030904552,0.0146,69057.0,69051.0,0.01449]
[1771030904744,0.38210496,69072.0,69054.0,0.37600528]
[1771030904949,0.014486,69067.0,69056.0,0.014488]
[1771030905147,0.014487,69065.0,69058.0,0.014488]
[1771030905348,0.07240636,69062.0,69058.0,0.029088]
[1771030905652,0.0146,69066.0,69059.0,0.014488]
[1771030905855,0.0146,69066.0,69060.0,0.014488]
[1771030906356,0.07239872,69062.0,69060.0,0.014488]
[1771030906556,0.04483067,69062.0,69060.0,0.014488]
[1771030907552,0.05083067,69062.0,69060.0,0.014488]
[1771030907855,0.04483067,69062.0,69060.0,0.014488]
[1771030908047,0.05283067,69062.0,69060.0,0.014488]
[1771030908448,0.05083067,69062.0,69060.0,0.014488]
[1771030908858,1.44938242,69140.0,69058.0,0.39060528]
[1771030909061,0.014483,69082.0,69069.0,0.014486]
[1771030909248,0.014484,69079.0,69070.0,0.014486]
[1771030909451,0.07238499,69075.0,69071.0,0.014485]
[1771030910852,0.08038499,69075.0,69071.0,0.014485]
[1771030911348,0.08038499,69075.0,69069.0,0.029086]
[1771030911552,0.014485,69074.0,69064.0,0.159367]
[1771030911758,0.014487,69063.0,69051.0,0.014489]
[1771030911958,0.014487,69063.0,69055.0,0.014488]
[1771030912155,0.0146,69065.0,69056.0,0.0146]
[1771030912554,0.014487,69062.0,69056.0,0.0146]
[1771030912749,0.014487,69064.0,69056.0,0.0146]
[1771030913062,0.014487,69063.0,69056.0,0.0146]
[1771030913659,0.014488,69060.0,69051.0,0.015489]
[1771030913963,0.05757075,69058.0,69052.0,0.0146]
[1771030916164,0.0146,69061.0,69054.0,0.014489]
[1771030916368,0.07241977,69058.0,69054.0,0.014489]
[1771030916568,0.05161352,69058.0,69053.0,0.014489]
[1771030917360,0.05361352,69058.0,69053.0,0.014489]
[1771030917862,0.05161352,69058.0,69053.0,0.014489]
[1771030918068,0.05361352,69058.0,69053.0,0.014489]
[1771030919162,0.05361352,69058.0,69052.0,0.014489]
[1771030919466,0.05161352,69058.0,69053.0,0.0196]
[1771030919969,0.05161352,69058.0,69053.0,0.0146]
[1771030920169,0.01973115,69058.0,69053.0,0.0196]
[1771030920666,0.01973115,69058.0,69053.0,0.0186]
[1771030922271,0.01973115,69058.0,69053.0,0.0166]
[1771030922769,0.01973115,69058.0,69053.0,0.0146]
[1771030922966,0.01973115,69058.0,69053.0,0.0176]
[1771030923363,0.01973115,69058.0,69053.0,0.0166]
[1771030923770,0.01973115,69058.0,69053.0,0.031089]
[1771030924670,0.01973115,69058.0,69053.0,0.0166]
[1771030929069,0.01973115,69058.0,69053.0,0.031089]
[1771030929569,0.014485,69075.0,69058.0,0.36497926]
[1771030929873,0.014486,69066.0,69059.0,0.0146]
[1771030930068,0.07239965,69061.0,69059.0,0.0146]
[1771030930563,0.07239965,69061.0,69056.0,0.14488]
[1771030930770,0.07239965,69061.0,69058.0,0.0366]
[1771030931075,0.08688765,69061.0,69051.0,0.014489]
[1771030931373,0.10137565,69061.0,69052.0,0.029089]
[1771030931564,0.014488,69058.0,69052.0,0.0146]
[1771030931769,0.014488,69059.0,69052.0,0.0146]
[1771030931966,0.029088,69059.0,69052.0,0.0146]
[1771030932168,0.014488,69057.0,69051.0,0.0146]
[1771030932365,0.014489,69056.0,69051.0,0.0146]
[1771030932567,0.014488,69057.0,69049.0,0.01449]
[1771030932765,0.014488,69057.0,69050.0,0.0146]
[1771030933364,0.008,69056.0,69050.0,0.0146]
[1771030933875,0.014488,69057.0,69050.0,0.0146]
[1771030934175,0.021488,69057.0,69050.0,0.0146]
[1771030934474,0.02423562,69059.0,69050.0,0.0146]
[1771030934875,0.014488,69057.0,69050.0,0.0146]
[1771030935172,0.008,69056.0,69050.0,0.0146]
[1771030936174,0.008,69056.0,69049.0,0.01449]
[1771030936371,0.014488,69057.0,69050.0,0.0146]
[1771030937178,0.005,69056.0,69050.0,0.0146]
[1771030937478,0.014488,69057.0,69050.0,0.0146]
[1771030937678,0.015488,69057.0,69050.0,0.0146]
[1771030939778,0.001,69057.0,69050.0,0.02909]
[1771030940979,0.01456,69059.0,69050.0,0.02909]
[1771030941175,0.014488,69058.0,69050.0,0.02909]
[1771030942583,0.014488,69058.0,69050.0,0.01449]
[1771030942783,0.014488,69058.0,69051.0,0.01456]
[1771030942971,0.01456,69059.0,69048.0,0.01456]
[1771030943177,0.01456,69059.0,69051.0,0.014489]
[1771030943479,0.01456,69059.0,69051.0,0.029049]
[1771030943678,0.029048,69059.0,69051.0,0.029049]
[1771030943881,0.01456,69059.0,69052.0,0.014489]
[1771030944484,0.029048,69059.0,69051.0,0.029049]
[1771030944685,0.029048,69059.0,69051.0,0.032049]
[1771030944980,0.029048,69059.0,69051.0,0.017489]
[1771030945183,0.029048,69059.0,69052.0,0.01456]
[1771030945586,0.029048,69059.0,69052.0,0.01756]
[1771030946086,0.01456,69059.0,69052.0,0.032049]
[1771030946488,0.029048,69059.0,69052.0,0.032049]
[1771030946982,0.029048,69059.0,69052.0,0.017489]
[1771030947178,0.014488,69058.0,69052.0,0.01456]
[1771030947373,0.014488,69058.0,69047.0,0.01449]
[1771030947572,0.014488,69057.0,69048.0,0.02905]
[1771030947786,0.014488,69057.0,69049.0,0.01449]
[1771030948177,0.014488,69057.0,69052.0,0.002]
[1771030948878,0.014488,69057.0,69050.0,0.01456]
[1771030950487,0.024488,69057.0,69050.0,0.01456]
[1771030950678,0.014489,69056.0,69050.0,0.01456]
[1771030951177,0.014489,69055.0,69044.0,0.24850948]
[1771030951377,0.01449,69050.0,69043.0,0.01456]
[1771030951582,0.01456,69049.0,69044.0,0.014491]
[1771030951783,0.01456,69049.0,69043.0,0.014491]
[1771030952592,0.01456,69049.0,69043.0,0.028982]
[1771030952782,0.01456,69049.0,69044.0,0.014491]
[1771030953393,0.01449,69048.0,69041.0,0.01456]
[1771030953893,0.02905,69050.0,69035.0,0.01456]
[1771030953894,0.014492,69040.0,69035.0,0.01456]
[1771030954496,0.014492,69039.0,69035.0,0.01456]
[1771030954701,0.014492,69039.0,69034.0,0.01456]
[1771030955000,0.014493,69034.0,69028.0,0.01456]
[1771030955187,0.014493,69034.0,69027.0,0.01456]
[1771030955392,0.014493,69034.0,69026.0,0.01456]
[1771030955593,0.029053,69034.0,69026.0,0.01456]
[1771030955994,0.014493,69033.0,69025.0,0.014495]
[1771030956193,0.029053,69034.0,69025.0,0.01456]
[1771030956194,0.014494,69032.0,69025.0,0.01456]
[1771030956497,0.014493,69033.0,69025.0,0.01456]
[1771030956994,0.014493,69033.0,69024.0,0.029055]
[1771030956995,0.014494,69032.0,69024.0,0.029055]
[1771030957396,0.014494,69032.0,69027.0,0.007]
[1771030957597,0.029053,69034.0,69024.0,0.029055]
[1771030957598,0.014493,69033.0,69024.0,0.029055]
[1771030957903,0.014493,69033.0,69025.0,0.007]
[1771030958496,0.014493,69033.0,69027.0,0.006]
[1771030958800,0.029053,69034.0,69027.0,0.006]
[1771030958801,0.014494,69032.0,69027.0,0.006]
[1771030959005,0.014493,69033.0,69024.0,0.029055]
[1771030959303,0.014493,69033.0,69025.0,0.021495]
[1771030960400,0.029053,69034.0,69026.0,0.014495]
[1771030960597,0.029053,69034.0,69027.0,0.003]
[1771030960997,0.029053,69034.0,69025.0,0.02899]
[1771030961199,0.029053,69034.0,69025.0,0.003]
[1771030961402,0.00869798,69033.0,69025.0,0.017495]
[1771030961803,0.029053,69034.0,69027.0,0.003]
[1771030963302,0.029053,69034.0,69025.0,0.014495]
[1771030963505,0.029053,69034.0,69025.0,0.018495]
[1771030963707,0.029053,69034.0,69026.0,0.014495]
[1771030963906,0.029053,69034.0,69027.0,0.003]
[1771030964407,0.029053,69034.0,69026.0,0.014495]
[1771030964706,0.01456,69045.0,69036.0,0.014493]
[1771030964904,0.00755996,69044.0,69037.0,0.014492]
[1771030965098,0.07244579,69042.0,69037.0,0.014492]
[1771030965898,0.01456,69044.0,69038.0,0.014492]
[1771030966106,0.01456,69044.0,69036.0,0.014493]
[1771030966107,0.01456,69044.0,69037.0,0.014492]
[1771030966508,0.07241969,69042.0,69037.0,0.014492]
[1771030966702,1e-08,69042.0,69038.0,0.014492]
[1771030966901,0.07241871,69043.0,69039.0,0.014492]
[1771030967102,0.01456,69044.0,69039.0,0.014492]
[1771030967304,0.01456,69044.0,69038.0,0.014492]
[1771030967508,0.08697766,69044.0,69038.0,0.014492]
[1771030968012,0.08697766,69044.0,69038.0,0.015492]
[1771030968400,0.08697766,69044.0,69038.0,0.014492]
[1771030968710,0.08697766,69044.0,69040.0,0.014492]
[1771030969099,0.08697766,69044.0,69038.0,0.001]
[1771030969506,0.07241766,69044.0,69038.0,0.001]
[1771030970104,0.07241766,69044.0,69040.0,0.001]
[1771030970601,0.07241766,69044.0,69037.0,0.014492]
[1771030970803,0.07341766,69044.0,69038.0,0.007]
[1771030971205,0.08690866,69044.0,69037.0,0.014492]
[1771030971409,0.08790866,69044.0,69040.0,0.006]
[1771030971714,0.07341766,69044.0,69040.0,0.006]
[1771030972908,0.07341766,69044.0,69038.0,0.021492]
[1771030973110,0.00071427,69041.0,69038.0,0.021492]
[1771030973406,0.00071427,69041.0,69038.0,0.014492]
[1771030973619,0.00071427,69041.0,69040.0,0.012]
[1771030974111,0.00071427,69041.0,69038.0,0.027492]
[1771030975507,0.00071427,69041.0,69038.0,0.041984]
[1771030976014,0.00071427,69041.0,69038.0,0.028984]
[1771030976201,0.00271427,69041.0,69040.0,0.012]
[1771030976811,0.00271427,69041.0,69038.0,0.029492]
[1771030977011,0.00271427,69041.0,69038.0,0.043984]
[1771030977211,0.00271427,69041.0,69038.0,0.028984]
[1771030977409,0.00271427,69041.0,69040.0,0.014]
[1771030977911,0.00271427,69041.0,69038.0,0.029492]
[1771030978613,0.00271427,69041.0,69039.0,0.014492]
[1771030978812,0.07241766,69044.0,69039.0,0.014492]
[1771030979503,0.003,69041.0,69040.0,0.018]
[1771030979903,0.07241766,69044.0,69039.0,0.033492]
[1771030980209,0.07541766,69044.0,69039.0,0.033492]
[1771030980410,0.07541766,69044.0,69039.0,0.014492]
[1771030980716,0.003,69041.0,69040.0,0.018]
[1771030981116,0.07541766,69044.0,69039.0,0.047984]
[1771030981316,0.07541766,69044.0,69039.0,0.033492]
[1771030982910,0.07541766,69044.0,69040.0,0.014492]
[1771030983112,0.014486,69066.0,69047.0,0.3828286]
[1771030983314,0.014489,69053.0,69039.0,0.019]
[1771030983515,0.01449,69050.0,69042.0,0.014491]
[1771030983715,0.014491,69042.0,69034.0,0.03641692]
[1771030983922,0.05791583,69047.0,69038.0,0.014492]
[1771030984121,0.01456,69046.0,69038.0,0.014492]
[1771030984514,0.014491,69045.0,69038.0,0.014492]
[1771030984715,0.029051,69046.0,69038.0,0.014492]
[1771030984913,0.029051,69046.0,69041.0,0.014492]
[1771030984914,0.01456,69046.0,69041.0,0.014492]
[1771030986021,0.002,69042.0,69041.0,0.014492]
[1771030986219,0.01456,69046.0,69041.0,0.014492]
[1771030986417,0.01656,69046.0,69041.0,0.017492]
[1771030986921,0.01456,69046.0,69041.0,0.014492]
[1771030987421,0.01456,69047.0,69039.0,0.028984]